Cogmind - Beta 13 @@@ ROGUE MODE // 2024.04.02 @ 18:37:11 Player: VC94 Result: Destroyed by G-34 Mercenary with Small Laser Performance ------------- Evolutions (0) 0 Regions Visited (2) 400 Robots Destroyed (30) 150 Value Destroyed (748) 748 Prototype IDs (3) 60 Alien Tech Used (0) 0 Bonus (0) 0 TOTAL SCORE: 1358 Bonus ------- None Cogmind --------- Core Integrity 0/250 Matter 249/300 Energy 100/100 System Corruption 1% Temperature Cool (56) Movement Walking (680) Ox8 Location -10/Mines Parts ------- > --- POWER (1) -------- (None) > --- PROPULSION (2) --- Aluminum Leg > --- UTILITY (2) ------ Huge Storage Unit Signal Interpreter > --- WEAPON (2) ------- Assault Rifle Assault Cannon > --- INVENTORY (25) --- Ion Engine Ion Engine Light Angular Momentum Engine Aluminum Leg Aluminum Leg Aluminum Leg Aluminum Leg Aluminum Leg Carbon-fiber Leg Carbon-fiber Leg Large Battery (200) Large Matter Pod (150) Improved Sensor Array Improved Signal Interpreter Terrain Scanner Improved Terrain Scanner Improved Terrain Scan Processor ECM Suite Reaction Control System Power Shielding Weapon Shielding Assault Rifle Peak State ------------ > --- POWER ------------ Light Ion Engine > --- PROPULSION ------- Aluminum Leg Aluminum Leg > --- UTILITY ---------- Huge Storage Unit Signal Interpreter > --- WEAPON ----------- Assault Rifle Assault Cannon > --- INVENTORY -------- Ion Engine Ion Engine Light Angular Momentum Engine Aluminum Leg Aluminum Leg Aluminum Leg Aluminum Leg Aluminum Leg Carbon-fiber Leg Carbon-fiber Leg Large Battery Large Matter Pod Improved Sensor Array Improved Signal Interpreter Terrain Scanner Improved Terrain Scanner Improved Terrain Scan Processor ECM Suite Reaction Control System Power Shielding Weapon Shielding Assault Rifle [Rating: 13] Favorites ----------- Power Light Ion Engine Engine Light Ion Engine Power Core Light Nuclear Core Propulsion Aluminum Leg Leg Aluminum Leg Utility Huge Storage Unit Device Sensor Array Storage Huge Storage Unit Processor Signal Interpreter Weapon Light Assault Rifle Energy Gun EM Pulse Gun Ballistic Gun Light Assault Rifle Ballistic Cannon Assault Cannon Build | -11 -10 -10 ------- Run | Yrd Mat Min Slots Evolved . | . . . Power . | . . . Propulsion . | . . . Utility . | . . . Weapon . | . . . Parts Attached 24 | 6 13 5 Power 5 | 1 3 1 Engine 4 | 1 2 1 Core 1 | . 1 . Reactor . | . . . Propulsion 5 | 2 3 . Treads . | . . . Leg 5 | 2 3 . Wheel . | . . . Hover . | . . . Flight . | . . . Utility 6 | 1 4 1 Device 1 | . 1 . Storage 4 | 1 3 . Processor 1 | . . 1 Hackware . | . . . Protection . | . . . Artifact . | . . . Weapon 8 | 2 3 3 Energy Gun 3 | 2 1 . Energy Cannon . | . . . Ballistic Gun 4 | . 2 2 Ballistic Cannon 1 | . . 1 Launcher . | . . . Special Weapon . | . . . Impact Weapon . | . . . Slashing Weapon . | . . . Piercing Weapon . | . . . Special Melee Weapon . | . . . Unidentified Prototypes . | . . . Parts Lost 9 | . 5 4 Power 4 | . 2 2 Propulsion 3 | . 2 1 Utility 1 | . . 1 Weapon 1 | . 1 . Highest Loss Streak 3 | . 3 2 To Critical Strikes . | . . . Average Slot Usage (%) 98 | . 98 98 Engine 9 | . 10 7 Core 3 | . 3 5 Leg 27 | . 27 27 Device 10 | . 11 5 Storage 14 | . 15 14 Processor 1 | . . 7 Energy Gun 9 | . 10 6 Ballistic Gun 17 | . 17 17 Naked Turns . | . . . Heaviest Build 90 | 14 89 90 Greatest Support 20 | 20 20 20 Greatest Overweight (x) 8 | 4 4 8 Average Overweight (x) 2 | . 2 4 Largest Inventory Capacity 25 | 8 25 25 Average Capacity 22 | 7 21 25 Most Carried 22 | 5 11 22 Average Carried 8 | 1 7 12 Final Capacity 25 | 8 25 25 Final Carried 22 | 2 11 22 Class Distribution -------------------- 98% | Mutant Dominant Class ---------------- Mutant | -10/Materials Mutant | -10/Mines Resources | -11 -10 -10 ----------- Run | Yrd Mat Min Matter Collected 762 | 192 352 218 Remotely . | . . . Salvage Created 912 | . 495 417 Parts 68 | . 35 33 Haulers Intercepted . | . . . Recyclers Shooed . | . . . Parts Field Recycled . | . . . Retrieved Matter . | . . . Parts Self-Destructed . | . . . Prevented . | . . . Kills | -11 -10 -10 ------- Run | Yrd Mat Min Combat Hostiles Destroyed 28 | . 12 16 Guns 23 | . 11 12 Cannons 4 | . . 4 AOE 1 | . 1 . Classes Destroyed 6 | . 4 2 Builder 1 | . 1 . Tunneler 1 | . . 1 Watcher 2 | . 2 . Swarmer 9 | . 3 6 Grunt 17 | . 9 8 Assembled 2 | . . 2 Best Kill Streak 5 | . 3 5 Combat Bots Only 5 | . 3 5 Max Kills in Single Turn 2 | . 2 2 Gunslinging 1 | . . 1 Exploded 1 | . 1 . Melee . | . . . Uniques/NPCs Destroyed . | . . . Combat | -11 -10 -10 -------- Run | Yrd Mat Min Hostile Shots Fired 135 | . 65 70 Missed 41 | . 19 22 Damage Taken 1326 | . 771 555 Core 255 | . 125 130 Absorbed by Shields . | . . . Core Remaining (%) 100 | 100 . . Volleys Fired 83 | . 55 28 Largest 2 | . 2 2 Hottest 80 | . 80 64 Shots Fired 165 | . 109 56 Gun 151 | . 109 42 Cannon 14 | . . 14 Launcher . | . . . Special . | . . . Kinetic 107 | . 63 44 Thermal . | . . . Explosive . | . . . Electromagnetic 58 | . 46 12 Robot Hit Streak 9 | . 7 9 Robot Miss Streak 3 | . 3 3 Penetration Max . | . . . Secondary Targets 2 | . 1 1 Max Gunslinging Chain 1 | . 1 1 Shots Hit Robots 103 | . 66 37 Core Hits 52 | . 29 23 Critical Kills . | . . . Critical Parts Destroyed . | . . . Critical Strikes . | . . . Melee Attacks . | . . . Impact . | . . . Slashing . | . . . Piercing . | . . . Sneak Attacks . | . . . Combat Hostiles . | . . . Follow-up Attacks . | . . . Damage Inflicted 1616 | . 878 738 Guns 1103 | . 712 391 Cannons 249 | . . 249 Explosions 261 | . 163 98 Melee . | . . . Ramming 3 | . 3 . Kinetic 815 | . 313 502 Thermal 261 | . 163 98 Explosive . | . . . Electromagnetic 537 | . 399 138 Impact . | . . . Slashing . | . . . Piercing . | . . . Highest Corruption 1 | . 1 1 Average Corruption 1 | . 1 1 Corruption Purged . | . . . Corruption Blocked . | . . . Effects 22 | . 22 . Message Errors 6 | . 6 . Matter Fused 6 | . 6 . Heat Flow Errors 3 | . 3 . Energy Discharges 3 | . 3 . Data Loss (minor) 1 | . 1 . Misfires 1 | . 1 . Alerts 1 | . 1 . Weapon Failures 1 | . 1 . Overload Shots . | . . . Overflow Damage . | . . . Projectiles . | . . . Explosions . | . . . Melee . | . . . Knockbacks 6 | . . 6 Impact . | . . . Kinetic 4 | . . 4 Secondary 2 | . . 2 Self-Inflicted Damage 36 | . 23 13 Shots 2 | . 1 1 Rammed . | . . . Targets Rammed 1 | . 1 . Kicked 1 | . 1 . Crushed . | . . . Highest Temperature 175 | . 175 93 Average Temperature 36 | . 40 27 Received Heat Transfer 490 | . 252 238 Siege Activations . | . . . Robots Corrupted . | . . . Combat Hostiles . | . . . Parts Fried 1 | . 1 . Impact Corruptions . | . . . Robots Melted . | . . . Combat Hostiles . | . . . Parts Melted 1 | . . 1 Heat Transferred 400 | . 250 150 Parts Sabotaged . | . . . Parts Stolen . | . . . Parts Stripped . | . . . Power Chain Reactions 3 | . 2 1 Alert | -11 -10 -10 ------- Run | Yrd Mat Min Peak Influence 210 | . 210 165 Initial . | . . . Average 39 | . 30 75 Maximum Alert Level 1 | . 1 . Low Security (%) 99 | 100 99 100 Level 1 . | . . . Level 2 . | . . . Level 3 . | . . . Level 4 . | . . . Level 5 . | . . . High Security . | . . . Max Security . | . . . Squads Dispatched 4 | . 3 1 Investigation 1 | . . 1 Extermination . | . . . Reinforcement 3 | . 3 . Assault . | . . . Garrison . | . . . Intercept . | . . . Searches Triggered . | . . . Construction Impeded . | . . . Haulers Reinforced . | . . . Active Scanning Responses . | . . . Cargo Convoy Interrupts . | . . . Stealth | -11 -10 -10 --------- Run | Yrd Mat Min Distress Signals 2 | . 2 . Communications Jammed . | . . . Distress Signals . | . . . Times Spotted 45 | . 26 19 Peak Tracking Total 7 | . 4 7 Tactical Retreats 3 | . . 3 Traps | -11 -10 -10 ------- Run | Yrd Mat Min Traps Triggered 2 | . 2 . Indirectly . | . . . Trap Hack Attempts . | . . . Triggered . | . . . Disarmed . | . . . Reprogrammed . | . . . Reused . | . . . Traps Extracted . | . . . Installed . | . . . Triggered . | . . . Machines | -11 -10 -10 ---------- Run | Yrd Mat Min Machines Disabled 1 | . 1 . Max in Single Turn 1 | . 1 . Machines Repaired . | . . . Machines Dismantled . | . . . Machines Sabotaged . | . . . Overloaded Fab Kills . | . . . Hacking | -11 -10 -10 --------- Run | Yrd Mat Min Machines Accessed 8 | . 7 1 Terminals 6 | . 6 . Fabricators . | . . . Repair Stations . | . . . Recycling Units 1 | . 1 . Scanalyzers . | . . . Garrison Access . | . . . Total Hacks 17 | . 16 1 Successful 11 | . 10 1 Failed 6 | . 6 . Catastrophic . | . . . Database Lockouts . | . . . Manual . | . . . Terminals 13 | . 13 . Fabricators . | . . . Repair Stations . | . . . Recycling Units 3 | . 3 . Scanalyzers . | . . . Garrison Access . | . . . Terminal Hacks 8 | . 7 1 Record 1 | . 1 . Prototype ID Bank 2 | . 2 . Open Door 1 | . . 1 Alert Level 2 | . 2 . Hauler Manifests 1 | . 1 . Zone Layout 1 | . 1 . Fabricator Hacks . | . . . Repair Station Hacks . | . . . Recycling Unit Hacks 3 | . 3 . Recycle Component 1 | . 1 . Process 2 | . 2 . Scanalyzer . | . . . Garrison Access Hacks . | . . . Unauthorized Hacks . | . . . Terminals . | . . . Fabricators . | . . . Repair Stations . | . . . Recycling Units . | . . . Scanalyzers . | . . . Garrison Access . | . . . Data Cores Recovered . | . . . Used . | . . . Hacking Detections 4 | . 4 . Full Trace Events 1 | . 1 . Feedback Events 1 | . 1 . Corruption 1 | . 1 . Feedback Blocked . | . . . Robot Schematics Acquired . | . . . Robots Built . | . . . Authchips . | . . . Time . | . . . Total Robot Build Rating . | . . . Part Schematics Acquired . | . . . Parts Built . | . . . Authchips . | . . . Time . | . . . Total Part Build Rating . | . . . Parts Repaired . | . . . Time . | . . . Parts Recycled 1 | . 1 . Recycled Matter 135 | . 135 . Retrieved Matter . | . . . Retrieved Components . | . . . Parts Scanalyzed . | . . . Part Schematics Acquired . | . . . Parts Damaged . | . . . Bothacking | -11 -10 -10 ------------ Run | Yrd Mat Min Used RIF Installer . | . . . Robots Hacked . | . . . Non-combat . | . . . Combat . | . . . Robot Hacks Applied . | . . . Relay Couplers Released . | . . . Fabnet Peak Effective % . | . . . Robots Rewired . | . . . Allies Hacked . | . . . Hacks Repelled . | . . . Allies | -11 -10 -10 -------- Run | Yrd Mat Min Total Allies . | . . . Largest Group . | . . . Highest-Rated Group . | . . . Highest-Rated Ally . | . . . Total Orders . | . . . Ally Attacks . | . . . Total Damage . | . . . Kills . | . . . Allies Corrupted . | . . . Allies Melted . | . . . Intel | -11 -10 -10 ------- Run | Yrd Mat Min Robot Analysis Total . | . . . Derelict Logs Recovered 1 | . . 1 Drone Launches . | . . . Drone Recoveries . | . . . Exploration | -11 -10 -10 ------------- Run | Yrd Mat Min Turns Passed 3428 | 56 2626 746 Spaces Moved 999 | 42 797 160 Core 35 | 22 13 . Treads . | . . . Legs 964 | 20 784 160 Wheels . | . . . Hover . | . . . Flight . | . . . Fastest Speed 50 | 50 120 400 Average Speed 311 | 102 304 401 Slowest Speed 680 | 250 400 680 Overloaded Moves . | . . . Propulsion Burnouts . | . . . Robots Hopped . | . . . Cave-ins Triggered . | . . . Exploration Rate (%) 45 | 3 98 36 Regions Visited 2 Branch Regions 1 Pre-discovered Areas . | . . . Known Exits Taken . | . . . Unknown Exits Taken 2 | 1 1 . Scrap Searched 1 | . . 1 Spaces Dug . | . . . Terrain Destroyed 6 | . 5 1 Melee . | . . . Projectile . | . . . AOE 6 | . 5 1 Terrain Rammed . | . . . Walls Destroyed . | . . . Machines Disabled . | . . . Actions | -11 -10 -10 --------- Run | Yrd Mat Min Total 1164 | 55 897 212 Wait . | . . . Move 997 | 41 796 160 Hop . | . . . Pick Up 48 | 8 24 16 Fast Attach . | . . . Attach 15 | 6 7 2 Detach . | . . . Swap 9 | . 6 3 Drop 11 | . 8 3 Fire 83 | . 55 28 Melee . | . . . Ram . | . . . Kick 1 | . 1 . Crush . | . . . Escape Stasis . | . . . Rewire . | . . . Trap . | . . . Miscellaneous . | . . . Route ------- -11/Scrapyard -10/Materials (discovered 5 exits: [*Mat x3] / *Min / [*Sub]) -10/Mines History --------- Turn | Location | Event 13 | -11/Scrapyard | Discovered new exit (range 15) 57 | -11/Scrapyard | Entered Materials 278 | -10/Materials | Lost 3 parts (1p2n) 303 | -10/Materials | Build established: Mutant 370 | -10/Materials | Discovered new exit (range 13) 524 | -10/Materials | Discovered new exit (range 8) 1138 | -10/Materials | Discovered new exit (range 14) 1651 | -10/Materials | Discovered new exit (range 10) 2466 | -10/Materials | Discovered new exit (range 15) 2683 | -10/Materials | Entered Mines 2784 | -10/Mines | Learned Materials security intel 2869 | -10/Mines | Excavation squad dispatched 2869 | -10/Mines | A large section of the Mines collapsed 2980 | -10/Mines | Core integrity fell below 50% 3119 | -10/Mines | Excavation squad dispatched 3165 | -10/Mines | Met a Derelict shopkeep closing up shop 3369 | -10/Mines | Excavation squad dispatched 3405 | -10/Mines | Core integrity fell below 20% 3429 | -10/Mines | Destroyed by G-34 Mercenary with Small Laser Last Messages --------------- K-01 Serf collects debris. S-10 Pest destroyed. Acquired 11 matter. K-01 Serf collects debris. S-10 Pest knocked back. K-01 Serf collects debris. Aluminum Leg destroyed. K-01 Serf collects debris. S-10 Pest destroyed. G-34 Mercenary destroyed. K-01 Serf collects debris. T-07 Excavator knocked back. K-01 Serf collects debris. G-34 Mercenary destroyed. K-01 Serf collects debris. G-34 Mercenary knocked back. K-01 Serf collects debris. Lgt. Ion Engine destroyed. K-01 Serf collects debris. T-07 Excavator destroyed. Map ----- +----------------------------------------------------+ | ?????????????????????????????????????????????????? | | ?????????????????????????????????????????????????? | | ?????????????????????????????????????????????????? | | ?????????????????????????????????????????????????? | | ?????????????????????????????????????????????????? | | ?????????????????????????????????????????????????? | | ?????????????????????????????????????????????????? | | ?????????????????????????????????????????????????? | | ?????????????????????????#???????????????????????? | | ????????????????????????? ???????????????????????? | | ????????????????????????? ???????????????????????? | | ????????????????????????? ???????????????????????? | | ????????????????????????? #??????????????????????? | | ????????????????????????? ##?????????????????????? | | ????????????????????????? ##????????????????????? | | ????????????????????????# ?????????????????????? | | ??######???????????????## % ?????????????????????? | | ?##""""##??????####???## tk#?????????????????????? | | ?#"= "#?????## ##??#g* %#?????????????????????? | | ?#" "#????## #??#%%= #?????????????????????? | | ?## ##???## #??? [tg??????????????????????? | | ?### ####??# ##??#=*#??????????????????????? | | ?# X #??# ##?#=%#????##????????????????? | | ?# #### ###[=#???# ##???????????????? | | ?# t[% % * #??# #???????????????? | | ?# = !%k %%%! @### #????????????????? | | ?# ###### = ! #?????????????????? | | ?# #??#g r ##?????????????????? | | ## #??#g %! #??????????????????? | | #??#g = r k ##??????????????????? | | ## #??#####%* ##???????????????????? | | ?# #??????#! t ##????????????????????? | | ?#########??????# ##?????????????????????? | | ????????????????# ##?#####????????????????? | | ????????????????# t %#### ##???????????????? | | ????????????????## ## ##??????????????? | | ?????????????????### |%= ##?????????????? | | ??????????????????## = * % ##????????????? | | ?????????????????## %= % ###??????????? | | ???????????# ##### ## #### [! ##????????? | | ???????????# ### #??##*[[ #?????? | | ???????????########=! ##?# #??##%=!% "########"# | | ??????????????????## [#??# #?## % %%" ##? | | ???????????????????# !#??# #?# !% = " #?? | | ???????????######### #### #?# = "### "!#?? | | ???????????# # #?# #????= %#? | | ???????????# # ######?## #?????? ?? | | ???# ####### ==# #???????# #????????? | | ???# = #???????## #????????? | | ?????????### [ #????????# ##????????? | +----------------------------------------------------+ Best States ------------- Heat Dissipation 25 Energy Generation 14 Energy Capacity 450 Matter Stores 300 Matter Capacity 300 Sight Range 16 Robot Scan Range 14 Terrain Scan Density 10 Evasion (%) 55 Item Schematics ----------------- None Robot Schematics ------------------ None Fabricated ------------ Nothing Alien Tech Used ----------------- None Achievements -------------- Shopping List Challenges ------------ None Game ------ Seed CannonLobotomyKatana Manual? 0 Play Time 00:19:44 Cumulative 2.5 hours Start 2024.04.02 @ 18:18:44 End 2024.04.02 @ 18:37:11 Sessions 1 Manual Loads 0 Difficulty Rogue Special Mode None Game No. 8 Rogue 8 Adventurer 0 Explorer 0 Win Type - Total 0 Types 0/0/0/0/0/0/0/0/0 Lore% 2 Gallery% 6 Achievement% 5 Wizard Run 0 Options --------- Layout 1 ASCII 0 Keyboard 0 Movement Mouse Keybinds 0 Fullscreen 1 Font 32/SmallcapsGlow Map View 50x40 Zoom Use 0% Tactical HUD 0 Map Filters NONE Filters NONE Steam 1 RUN: 035f444f-17cf-4196-aacb-f92e29cd7137